[Event "*** Titled Tuesday Blitz"]
[Site "Chess.com"]
[Date "2020.04.14"]
[Round "4"]
[White "BabyBoss31"]
[Black "Fy_Rakotomaharo"]
[Result "1-0"]
[WhiteElo "2354"]
[BlackElo "2552"]
[TimeControl "180+1"]
[EndTime "10:38:35 PDT"]
[Termination "BabyBoss31 won on time"]

1. d4 {[%clk 0:03:00.9]} 1... Nf6 {[%clk 0:02:59.9]} 2. c4 {[%clk 0:02:59.1]}
2... g6 {[%clk 0:03:00]} 3. Nc3 {[%clk 0:02:57.5]} 3... d5 {[%clk 0:03:00.5]} 4.
Bg5 {[%clk 0:02:50.4]} 4... Ne4 {[%clk 0:02:58.5]} 5. Bh4 {[%clk 0:02:44.4]}
5... Nxc3 {[%clk 0:02:58.1]} 6. bxc3 {[%clk 0:02:43.3]} 6... dxc4 {[%clk
0:02:58.6]} 7. e3 {[%clk 0:02:39]} 7... Be6 {[%clk 0:02:59]} 8. Nf3 {[%clk
0:02:36.8]} 8... Bg7 {[%clk 0:02:58.5]} 9. Qb1 {[%clk 0:02:32.1]} 9... b6 {[%clk
0:02:55.2]} 10. Be2 {[%clk 0:02:27.5]} 10... O-O {[%clk 0:02:46.9]} 11. O-O
{[%clk 0:02:24.5]} 11... c5 {[%clk 0:02:41.7]} 12. Rd1 {[%clk 0:02:21.3]} 12...
Qc7 {[%clk 0:02:26.1]} 13. Bg3 {[%clk 0:01:58.9]} 13... Qc8 {[%clk 0:02:13.8]}
14. d5 {[%clk 0:01:59]} 14... Bg4 {[%clk 0:01:57.6]} 15. Qe4 {[%clk 0:01:52.3]}
15... Bxc3 {[%clk 0:01:26.1]} 16. Rac1 {[%clk 0:01:49.3]} 16... Bf6 {[%clk
0:01:19.5]} 17. Rxc4 {[%clk 0:01:44]} 17... Bf5 {[%clk 0:01:12.6]} 18. Qf4
{[%clk 0:01:37.8]} 18... b5 {[%clk 0:00:59.4]} 19. Rcc1 {[%clk 0:01:30.3]} 19...
c4 {[%clk 0:00:39.7]} 20. e4 {[%clk 0:01:26.8]} 20... Bg4 {[%clk 0:00:27.1]} 21.
e5 {[%clk 0:01:26.3]} 21... Bg7 {[%clk 0:00:25.4]} 22. h3 {[%clk 0:01:19.7]}
22... Bxf3 {[%clk 0:00:17.6]} 23. Bxf3 {[%clk 0:01:19.6]} 23... Nd7 {[%clk
0:00:17.9]} 24. Qg5 {[%clk 0:01:15]} 24... f6 {[%clk 0:00:03.3]} 25. exf6 {[%clk
0:01:11]} 25... exf6 {[%clk 0:00:00.6]} 26. Qg4 {[%clk 0:01:07.4]} 1-0

[Event "*** Titled Tuesday Blitz"]
[Site "Chess.com"]
[Date "2020.04.14"]
[Round "4"]
[White "StoreySniper"]
[Black "BabyFacedAssasin"]
[Result "0-1"]
[WhiteElo "2522"]
[BlackElo "2289"]
[TimeControl "180+1"]
[EndTime "10:38:37 PDT"]
[Termination "BabyFacedAssasin won by resignation"]

1. g3 {[%clk 0:03:00.9]} 1... g6 {[%clk 0:02:59]} 2. Bg2 {[%clk 0:03:01.3]} 2...
Bg7 {[%clk 0:02:59.4]} 3. c4 {[%clk 0:03:01.5]} 3... c5 {[%clk 0:02:59.7]} 4.
Nc3 {[%clk 0:03:01.7]} 4... Nc6 {[%clk 0:02:58.8]} 5. Rb1 {[%clk 0:02:59.3]}
5... Nf6 {[%clk 0:02:57.2]} 6. a3 {[%clk 0:02:59.5]} 6... d6 {[%clk 0:02:52.5]}
7. b4 {[%clk 0:02:58.5]} 7... cxb4 {[%clk 0:02:50.2]} 8. axb4 {[%clk 0:02:58.3]}
8... O-O {[%clk 0:02:48.8]} 9. b5 {[%clk 0:02:58.2]} 9... Ne5 {[%clk 0:02:47.7]}
10. d3 {[%clk 0:02:57.4]} 10... Rb8 {[%clk 0:02:31.6]} 11. Be3 {[%clk
0:02:52.6]} 11... b6 {[%clk 0:02:29.8]} 12. Nf3 {[%clk 0:02:52.1]} 12... Bb7
{[%clk 0:02:26.5]} 13. O-O {[%clk 0:02:48.1]} 13... Nxf3+ {[%clk 0:02:24.8]} 14.
Bxf3 {[%clk 0:02:45.3]} 14... Bxf3 {[%clk 0:02:24.1]} 15. exf3 {[%clk
0:02:46.2]} 15... d5 {[%clk 0:02:23]} 16. Bd4 {[%clk 0:02:31.3]} 16... e6 {[%clk
0:01:58.8]} 17. cxd5 {[%clk 0:01:57.3]} 17... Nxd5 {[%clk 0:01:55.2]} 18. Bxg7
{[%clk 0:01:56.9]} 18... Kxg7 {[%clk 0:01:54.9]} 19. Ne4 {[%clk 0:01:56.3]}
19... f5 {[%clk 0:01:52]} 20. Nd2 {[%clk 0:01:41.6]} 20... h5 {[%clk 0:01:48.2]}
21. Qb3 {[%clk 0:01:39.2]} 21... h4 {[%clk 0:01:46.1]} 22. Nc4 {[%clk
0:01:32.5]} 22... hxg3 {[%clk 0:01:39.2]} 23. hxg3 {[%clk 0:01:31.3]} 23... Rh8
{[%clk 0:01:34.9]} 24. Qb2+ {[%clk 0:01:27.2]} 24... Qf6 {[%clk 0:01:32.1]} 25.
Ne5 {[%clk 0:01:10.6]} 25... Rh7 {[%clk 0:01:11]} 26. Ra1 {[%clk 0:01:04.8]}
26... Rbh8 {[%clk 0:00:47.7]} 27. Rxa7+ {[%clk 0:01:03.2]} 27... Ne7 {[%clk
0:00:47.6]} 28. Rxe7+ {[%clk 0:01:00.7]} 28... Qxe7 {[%clk 0:00:48.5]} 29. Ng4+
{[%clk 0:00:49.4]} 29... e5 {[%clk 0:00:48.1]} 30. Re1 {[%clk 0:00:42.9]} 30...
fxg4 {[%clk 0:00:47]} 0-1

[Event "*** Titled Tuesday Blitz"]
[Site "Chess.com"]
[Date "2020.04.14"]
[Round "4"]
[White "KingChess345"]
[Black "Jojo_1608"]
[Result "0-1"]
[WhiteElo "2035"]
[BlackElo "2236"]
[TimeControl "180+1"]
[EndTime "10:38:37 PDT"]
[Termination "Jojo_1608 won on time"]

1. d4 {[%clk 0:03:00.9]} 1... Nf6 {[%clk 0:02:59.7]} 2. Nf3 {[%clk 0:03:01.3]}
2... g6 {[%clk 0:02:59.1]} 3. g3 {[%clk 0:03:01.7]} 3... Bg7 {[%clk 0:02:57.5]}
4. Bg2 {[%clk 0:03:02.1]} 4... O-O {[%clk 0:02:56]} 5. O-O {[%clk 0:03:02.6]}
5... d6 {[%clk 0:02:56.3]} 6. c4 {[%clk 0:03:03.1]} 6... Nc6 {[%clk 0:02:56.5]}
7. Nc3 {[%clk 0:03:03.5]} 7... e5 {[%clk 0:02:56.6]} 8. d5 {[%clk 0:03:04]} 8...
Ne7 {[%clk 0:02:55.3]} 9. Ne1 {[%clk 0:03:03.3]} 9... Ne8 {[%clk 0:02:54.3]} 10.
e4 {[%clk 0:03:02.4]} 10... f5 {[%clk 0:02:54.5]} 11. Nd3 {[%clk 0:03:02.5]}
11... c6 {[%clk 0:02:46.3]} 12. Bg5 {[%clk 0:02:51.5]} 12... h6 {[%clk
0:02:43.3]} 13. Be3 {[%clk 0:02:47.9]} 13... cxd5 {[%clk 0:02:26.6]} 14. cxd5
{[%clk 0:02:46.2]} 14... g5 {[%clk 0:02:24.6]} 15. exf5 {[%clk 0:02:01.8]} 15...
Bxf5 {[%clk 0:02:23.7]} 16. Re1 {[%clk 0:01:52.2]} 16... Nf6 {[%clk 0:02:23.2]}
17. h3 {[%clk 0:01:37.2]} 17... Qd7 {[%clk 0:02:12.8]} 18. g4 {[%clk 0:01:36.4]}
18... Bg6 {[%clk 0:02:12.7]} 19. Ne2 {[%clk 0:01:08.4]} 19... Nexd5 {[%clk
0:02:02.8]} 20. Ng3 {[%clk 0:00:42.5]} 20... Nf4 {[%clk 0:01:54.1]} 21. Bxf4
{[%clk 0:00:20.7]} 21... gxf4 {[%clk 0:01:50.1]} 22. Nf5 {[%clk 0:00:18.3]}
22... Bxf5 {[%clk 0:01:46.3]} 23. gxf5 {[%clk 0:00:19.2]} 23... Qxf5 {[%clk
0:01:46.5]} 24. Nb4 {[%clk 0:00:13.5]} 24... e4 {[%clk 0:01:38.4]} 25. Qxd6
{[%clk 0:00:09.9]} 25... f3 {[%clk 0:01:36.6]} 26. Bf1 {[%clk 0:00:08.1]} 26...
Qg5+ {[%clk 0:01:23.5]} 27. Qg3 {[%clk 0:00:07.4]} 27... Qxg3+ {[%clk
0:01:22.5]} 28. fxg3 {[%clk 0:00:08.3]} 28... Nh5 {[%clk 0:01:20.4]} 29. g4
{[%clk 0:00:01.6]} 29... Bd4+ {[%clk 0:01:14.8]} 0-1

[Event "*** Titled Tuesday Blitz"]
[Site "Chess.com"]
[Date "2020.04.14"]
[Round "4"]
[White "VojtechPlat"]
[Black "Usurpov"]
[Result "1-0"]
[WhiteElo "2732"]
[BlackElo "2431"]
[TimeControl "180+1"]
[EndTime "10:38:43 PDT"]
[Termination "VojtechPlat won by checkmate"]

1. e4 {[%clk 0:03:00.9]} 1... c5 {[%clk 0:02:58.7]} 2. Nf3 {[%clk 0:03:00.6]}
2... e6 {[%clk 0:02:59]} 3. d4 {[%clk 0:03:01]} 3... cxd4 {[%clk 0:02:59.9]} 4.
Nxd4 {[%clk 0:03:01.6]} 4... Nf6 {[%clk 0:02:59.8]} 5. Nc3 {[%clk 0:03:02.2]}
5... Nc6 {[%clk 0:03:00.1]} 6. Ndb5 {[%clk 0:03:02.1]} 6... d6 {[%clk
0:02:58.4]} 7. Bf4 {[%clk 0:03:01.3]} 7... e5 {[%clk 0:02:58.6]} 8. Bg5 {[%clk
0:03:01.8]} 8... a6 {[%clk 0:02:58.9]} 9. Na3 {[%clk 0:03:02.4]} 9... Be6 {[%clk
0:02:58.9]} 10. Bc4 {[%clk 0:02:56.6]} 10... b5 {[%clk 0:02:47.1]} 11. Bxe6
{[%clk 0:02:56.5]} 11... fxe6 {[%clk 0:02:47.3]} 12. Ne2 {[%clk 0:02:47.5]}
12... h6 {[%clk 0:02:36.1]} 13. Bxf6 {[%clk 0:02:46.8]} 13... Qxf6 {[%clk
0:02:37]} 14. c3 {[%clk 0:02:46.2]} 14... Qg6 {[%clk 0:02:33.4]} 15. O-O {[%clk
0:02:40.7]} 15... Be7 {[%clk 0:02:25.3]} 16. Nc2 {[%clk 0:02:36.4]} 16... Qxe4
{[%clk 0:02:13.2]} 17. Ng3 {[%clk 0:02:35.6]} 17... Qg6 {[%clk 0:02:12.6]} 18.
Qf3 {[%clk 0:02:32.6]} 18... Rc8 {[%clk 0:02:06.7]} 19. Ne3 {[%clk 0:02:31.6]}
19... Qf7 {[%clk 0:01:53]} 20. Qe2 {[%clk 0:02:28.3]} 20... O-O {[%clk
0:01:51.6]} 21. a4 {[%clk 0:02:28.3]} 21... Rb8 {[%clk 0:01:44.9]} 22. axb5
{[%clk 0:02:27.6]} 22... axb5 {[%clk 0:01:45.8]} 23. Ra6 {[%clk 0:02:27.2]}
23... Rfc8 {[%clk 0:01:43.4]} 24. Rd1 {[%clk 0:02:20]} 24... Qf8 {[%clk
0:01:07.9]} 25. Qg4 {[%clk 0:02:17.8]} 25... Qf7 {[%clk 0:01:03.6]} 26. Rda1
{[%clk 0:02:04.5]} 26... b4 {[%clk 0:00:59.8]} 27. h4 {[%clk 0:01:50.7]} 27...
d5 {[%clk 0:00:49.9]} 28. Rd1 {[%clk 0:01:38.1]} 28... Bc5 {[%clk 0:00:39.5]}
29. Re1 {[%clk 0:01:24]} 29... bxc3 {[%clk 0:00:36.5]} 30. bxc3 {[%clk
0:01:23.3]} 30... Rb2 {[%clk 0:00:30.3]} 31. Re2 {[%clk 0:01:23]} 31... Rxe2
{[%clk 0:00:27.5]} 32. Qxe2 {[%clk 0:01:22.8]} 32... e4 {[%clk 0:00:20.4]} 33.
Ng4 {[%clk 0:01:22.2]} 33... Qf4 {[%clk 0:00:16.5]} 34. Nh5 {[%clk 0:01:19.7]}
34... Qc1+ {[%clk 0:00:14.3]} 35. Kh2 {[%clk 0:01:19.5]} 35... Qxc3 {[%clk
0:00:13.8]} 36. Ngf6+ {[%clk 0:01:19.4]} 36... Kh8 {[%clk 0:00:11.1]} 37. Qg4
{[%clk 0:01:18.8]} 37... Bd6+ {[%clk 0:00:10.2]} 38. g3 {[%clk 0:01:17.9]} 38...
gxf6 {[%clk 0:00:09.4]} 39. Qg7# {[%clk 0:01:17.5]} 1-0

[Event "*** Titled Tuesday Blitz"]
[Site "Chess.com"]
[Date "2020.04.14"]
[Round "4"]
[White "almatyonelove"]
[Black "BIG_Pirate"]
[Result "0-1"]
[WhiteElo "2672"]
[BlackElo "2378"]
[TimeControl "180+1"]
[EndTime "10:38:44 PDT"]
[Termination "BIG_Pirate won by resignation"]

1. d4 {[%clk 0:03:00.9]} 1... d5 {[%clk 0:02:59.5]} 2. Nf3 {[%clk 0:02:46.3]}
2... Nf6 {[%clk 0:02:58.7]} 3. Bf4 {[%clk 0:02:45.6]} 3... c5 {[%clk 0:02:58.2]}
4. e3 {[%clk 0:02:45.1]} 4... Nc6 {[%clk 0:02:56]} 5. Nbd2 {[%clk 0:02:45.6]}
5... cxd4 {[%clk 0:02:53.2]} 6. exd4 {[%clk 0:02:45.4]} 6... Bg4 {[%clk
0:02:51]} 7. c3 {[%clk 0:02:37.6]} 7... e6 {[%clk 0:02:50.8]} 8. Qb3 {[%clk
0:02:37.1]} 8... Qc8 {[%clk 0:02:46]} 9. h3 {[%clk 0:02:26.1]} 9... Bh5 {[%clk
0:02:45.1]} 10. Be2 {[%clk 0:02:16]} 10... Be7 {[%clk 0:02:43.9]} 11. O-O {[%clk
0:02:14.1]} 11... O-O {[%clk 0:02:43.9]} 12. Rae1 {[%clk 0:02:13.7]} 12... a6
{[%clk 0:02:34.5]} 13. Ne5 {[%clk 0:02:07.5]} 13... Bxe2 {[%clk 0:02:33.1]} 14.
Rxe2 {[%clk 0:02:06.4]} 14... b5 {[%clk 0:02:29.9]} 15. Rfe1 {[%clk 0:02:05.7]}
15... Nxe5 {[%clk 0:02:09.3]} 16. dxe5 {[%clk 0:02:04.1]} 16... Nd7 {[%clk
0:02:07.8]} 17. Nf3 {[%clk 0:02:03.7]} 17... Qc4 {[%clk 0:02:03.6]} 18. Qd1
{[%clk 0:02:02]} 18... Qxf4 {[%clk 0:02:02.8]} 19. Nd4 {[%clk 0:02:00.8]} 19...
Bc5 {[%clk 0:01:54.4]} 20. Re3 {[%clk 0:01:57.6]} 20... Bxd4 {[%clk 0:01:53.5]}
21. cxd4 {[%clk 0:01:56.3]} 21... Rfc8 {[%clk 0:01:53.3]} 22. Rf3 {[%clk
0:01:56.3]} 22... Qh6 {[%clk 0:01:53.3]} 23. Rg3 {[%clk 0:01:52.9]} 23... Rc4
{[%clk 0:01:47.4]} 24. Ree3 {[%clk 0:01:53]} 24... Rac8 {[%clk 0:01:45.4]} 25.
Kh2 {[%clk 0:01:52.6]} 25... Nf8 {[%clk 0:01:32.6]} 26. Rg4 {[%clk 0:01:49.8]}
26... Ng6 {[%clk 0:01:30.6]} 27. Reg3 {[%clk 0:01:49.2]} 27... Qc1 {[%clk
0:01:13.3]} 28. Qf3 {[%clk 0:01:46.3]} 28... Qxb2 {[%clk 0:01:13.2]} 29. h4
{[%clk 0:01:41.6]} 29... h5 {[%clk 0:01:04.5]} 30. Rg5 {[%clk 0:01:41.3]} 30...
Qxd4 {[%clk 0:01:01.7]} 31. Rxh5 {[%clk 0:01:41]} 31... Qf4 {[%clk 0:00:54.2]}
32. Qa3 {[%clk 0:01:38.6]} 32... Nxh4 {[%clk 0:00:44]} 33. Rg5 {[%clk
0:01:22.2]} 33... Nf5 {[%clk 0:00:42.7]} 34. Rg4 {[%clk 0:01:21.4]} 34... Qc1
{[%clk 0:00:26.5]} 35. Rxg7+ {[%clk 0:01:10.3]} 35... Nxg7 {[%clk 0:00:25.5]}
36. Qe7 {[%clk 0:01:10.9]} 36... Qh6+ {[%clk 0:00:23.8]} 37. Rh3 {[%clk
0:01:09.7]} 37... Qg6 {[%clk 0:00:22.8]} 38. Rg3 {[%clk 0:01:08.5]} 38... Rg4
{[%clk 0:00:22.1]} 0-1

[Event "*** Titled Tuesday Blitz"]
[Site "Chess.com"]
[Date "2020.04.14"]
[Round "4"]
[White "IljaZaragatski"]
[Black "MFBerna"]
[Result "1-0"]
[WhiteElo "2565"]
[BlackElo "2333"]
[TimeControl "180+1"]
[EndTime "10:38:44 PDT"]
[Termination "IljaZaragatski won by resignation"]

1. Nf3 {[%clk 0:03:00.9]} 1... d5 {[%clk 0:02:59.8]} 2. g3 {[%clk 0:03:00.9]}
2... Nf6 {[%clk 0:02:58.7]} 3. Bg2 {[%clk 0:02:57.9]} 3... g6 {[%clk 0:02:58.7]}
4. c4 {[%clk 0:02:55.8]} 4... Bg7 {[%clk 0:02:59.6]} 5. cxd5 {[%clk 0:02:54.1]}
5... Nxd5 {[%clk 0:03:00.1]} 6. O-O {[%clk 0:02:51.1]} 6... O-O {[%clk
0:02:59.6]} 7. Nc3 {[%clk 0:02:51.2]} 7... c5 {[%clk 0:02:56.9]} 8. d4 {[%clk
0:02:45.2]} 8... cxd4 {[%clk 0:02:54.4]} 9. Nxd4 {[%clk 0:02:46.1]} 9... Nxc3
{[%clk 0:02:52.3]} 10. bxc3 {[%clk 0:02:47]} 10... Nd7 {[%clk 0:02:48.3]} 11.
Rb1 {[%clk 0:02:39.7]} 11... Nc5 {[%clk 0:02:40]} 12. Ba3 {[%clk 0:02:37]} 12...
Qa5 {[%clk 0:02:07.8]} 13. Bb4 {[%clk 0:02:30.4]} 13... Qc7 {[%clk 0:02:07.3]}
14. Nb5 {[%clk 0:02:06.6]} 14... Qe5 {[%clk 0:01:58.1]} 15. Qd4 {[%clk
0:01:45.2]} 15... Qxd4 {[%clk 0:00:42.2]} 16. cxd4 {[%clk 0:01:44.8]} 16... Na6
{[%clk 0:00:31.1]} 17. Bxe7 {[%clk 0:01:10.5]} 17... Re8 {[%clk 0:00:30.9]} 18.
Bg5 {[%clk 0:01:03.7]} 18... Rxe2 {[%clk 0:00:31.8]} 19. Rfe1 {[%clk 0:00:57.4]}
19... Rxe1+ {[%clk 0:00:26.4]} 20. Rxe1 {[%clk 0:00:58.3]} 20... Bd7 {[%clk
0:00:16.7]} 21. Bxb7 {[%clk 0:00:54.7]} 21... Bxb5 {[%clk 0:00:08.2]} 22. Bxa8
{[%clk 0:00:53.5]} 22... Bxd4 {[%clk 0:00:07]} 23. Be3 {[%clk 0:00:48.3]} 23...
Bxe3 {[%clk 0:00:03.2]} 24. Rxe3 {[%clk 0:00:49.2]} 24... Nc5 {[%clk 0:00:03.6]}
25. Re5 {[%clk 0:00:47.9]} 1-0

[Event "*** Titled Tuesday Blitz"]
[Site "Chess.com"]
[Date "2020.04.14"]
[Round "4"]
[White "swayamsm"]
[Black "BrianEscalante"]
[Result "1-0"]
[WhiteElo "2669"]
[BlackElo "2500"]
[TimeControl "180+1"]
[EndTime "10:38:45 PDT"]
[Termination "swayamsm won on time"]

1. d4 {[%clk 0:03:00.9]} 1... Nf6 {[%clk 0:02:26]} 2. Nf3 {[%clk 0:03:00.6]}
2... c5 {[%clk 0:02:24.8]} 3. d5 {[%clk 0:03:00.2]} 3... e6 {[%clk 0:02:25]} 4.
Nc3 {[%clk 0:03:00.7]} 4... b5 {[%clk 0:02:25.4]} 5. dxe6 {[%clk 0:02:57.8]}
5... fxe6 {[%clk 0:02:26.3]} 6. Nxb5 {[%clk 0:02:57.8]} 6... d5 {[%clk
0:02:26.4]} 7. e3 {[%clk 0:02:56.2]} 7... a6 {[%clk 0:02:25.8]} 8. Nc3 {[%clk
0:02:56.2]} 8... Bd6 {[%clk 0:02:17]} 9. g3 {[%clk 0:02:54.7]} 9... O-O {[%clk
0:01:53.5]} 10. Bg2 {[%clk 0:02:54.4]} 10... Nc6 {[%clk 0:01:42.1]} 11. O-O
{[%clk 0:02:53.7]} 11... Ra7 {[%clk 0:01:39.9]} 12. Qe2 {[%clk 0:02:49.1]} 12...
e5 {[%clk 0:01:30.9]} 13. e4 {[%clk 0:02:38.6]} 13... d4 {[%clk 0:01:29]} 14.
Nd5 {[%clk 0:02:38.8]} 14... h6 {[%clk 0:00:54.1]} 15. Nh4 {[%clk 0:02:24.7]}
15... Be6 {[%clk 0:00:51.8]} 16. c4 {[%clk 0:02:17.2]} 16... Nb4 {[%clk
0:00:21.9]} 17. a3 {[%clk 0:02:09.9]} 17... Nbxd5 {[%clk 0:00:21.8]} 18. cxd5
{[%clk 0:02:10.1]} 18... Bd7 {[%clk 0:00:20.6]} 19. Bd2 {[%clk 0:02:07.5]} 19...
Bb5 {[%clk 0:00:20.7]} 20. Qd1 {[%clk 0:02:03.9]} 20... Bxf1 {[%clk 0:00:21.2]}
21. Qxf1 {[%clk 0:02:01.3]} 21... Qb6 {[%clk 0:00:21.1]} 22. Rb1 {[%clk
0:01:59.4]} 22... Qb5 {[%clk 0:00:21.4]} 23. Qd1 {[%clk 0:01:58]} 23... c4
{[%clk 0:00:21.5]} 24. Nf5 {[%clk 0:01:56.6]} 24... Bc5 {[%clk 0:00:21.2]} 25.
b4 {[%clk 0:01:47]} 25... Bb6 {[%clk 0:00:17.6]} 26. Nd6 {[%clk 0:01:40.4]}
26... Qd7 {[%clk 0:00:11.9]} 27. Nxc4 {[%clk 0:01:40.4]} 27... Bc7 {[%clk
0:00:08.4]} 28. Qb3 {[%clk 0:01:35.7]} 28... Bd6 {[%clk 0:00:08.1]} 29. f4
{[%clk 0:01:26.2]} 29... exf4 {[%clk 0:00:05.5]} 30. e5 {[%clk 0:01:21]} 30...
fxg3 {[%clk 0:00:04.6]} 31. hxg3 {[%clk 0:01:17.9]} 31... Qg4 {[%clk 0:00:02]}
32. Nxd6 {[%clk 0:01:14]} 32... Nh5 {[%clk 0:00:01.8]} 33. Ne4 {[%clk
0:01:10.8]} 1-0

[Event "*** Titled Tuesday Blitz"]
[Site "Chess.com"]
[Date "2020.04.14"]
[Round "4"]
[White "peixe64"]
[Black "Caclox"]
[Result "0-1"]
[WhiteElo "2306"]
[BlackElo "2487"]
[TimeControl "180+1"]
[EndTime "10:38:49 PDT"]
[Termination "Caclox won by checkmate"]

1. e4 {[%clk 0:03:00.9]} 1... c5 {[%clk 0:02:58.5]} 2. Nf3 {[%clk 0:03:00.9]}
2... d6 {[%clk 0:02:47.8]} 3. d4 {[%clk 0:02:59.9]} 3... cxd4 {[%clk 0:02:48.4]}
4. Nxd4 {[%clk 0:03:00.8]} 4... Nf6 {[%clk 0:02:45.3]} 5. Nc3 {[%clk 0:03:01.2]}
5... a6 {[%clk 0:02:42.6]} 6. Bg5 {[%clk 0:03:01.1]} 6... e6 {[%clk 0:02:38.3]}
7. Qe2 {[%clk 0:03:00.8]} 7... Qc7 {[%clk 0:02:35.1]} 8. O-O-O {[%clk
0:02:59.2]} 8... Nc6 {[%clk 0:02:35.6]} 9. f4 {[%clk 0:02:30.6]} 9... Nxd4
{[%clk 0:02:22.9]} 10. Rxd4 {[%clk 0:02:28.8]} 10... b5 {[%clk 0:02:22.5]} 11.
e5 {[%clk 0:02:17.8]} 11... dxe5 {[%clk 0:02:19.8]} 12. fxe5 {[%clk 0:02:17.8]}
12... Nd7 {[%clk 0:02:20.2]} 13. Nd5 {[%clk 0:01:04.7]} 13... Qc5 {[%clk
0:01:32.6]} 14. b4 {[%clk 0:00:49.5]} 14... Qc6 {[%clk 0:01:27.4]} 15. Ne3
{[%clk 0:00:32.9]} 15... Bb7 {[%clk 0:01:15.8]} 16. Qd2 {[%clk 0:00:28]} 16...
h6 {[%clk 0:01:07.1]} 17. Bh4 {[%clk 0:00:27.5]} 17... g5 {[%clk 0:01:06.7]} 18.
Bg3 {[%clk 0:00:26.3]} 18... Bg7 {[%clk 0:01:06.6]} 19. Be2 {[%clk 0:00:25.9]}
19... Nxe5 {[%clk 0:01:06.4]} 20. Bxe5 {[%clk 0:00:24.5]} 20... Bxe5 {[%clk
0:01:07.3]} 21. Bf3 {[%clk 0:00:24.9]} 21... Qc7 {[%clk 0:01:00.2]} 22. Bxb7
{[%clk 0:00:19.5]} 22... Qxb7 {[%clk 0:01:01.1]} 23. Rd3 {[%clk 0:00:18]} 23...
Bg7 {[%clk 0:00:48.7]} 24. h4 {[%clk 0:00:18.1]} 24... Qe7 {[%clk 0:00:41.6]}
25. Re1 {[%clk 0:00:15.6]} 25... Qf6 {[%clk 0:00:37.1]} 26. Nd5 {[%clk
0:00:15.4]} 26... Qa1# {[%clk 0:00:36]} 0-1

[Event "*** Titled Tuesday Blitz"]
[Site "Chess.com"]
[Date "2020.04.14"]
[Round "4"]
[White "CyberneticLion"]
[Black "Bacyanide"]
[Result "0-1"]
[WhiteElo "2485"]
[BlackElo "2338"]
[TimeControl "180+1"]
[EndTime "10:38:50 PDT"]
[Termination "Bacyanide won by resignation"]

1. d4 {[%clk 0:03:00.9]} 1... d5 {[%clk 0:02:58.9]} 2. Bf4 {[%clk 0:03:00.4]}
2... Nf6 {[%clk 0:02:58.4]} 3. e3 {[%clk 0:02:59.5]} 3... e6 {[%clk 0:02:58.2]}
4. c3 {[%clk 0:02:57.1]} 4... Bd6 {[%clk 0:02:56.8]} 5. Bg3 {[%clk 0:02:55.9]}
5... O-O {[%clk 0:02:54.2]} 6. Nd2 {[%clk 0:02:55.4]} 6... c5 {[%clk 0:02:54.1]}
7. Ngf3 {[%clk 0:02:52.5]} 7... Qc7 {[%clk 0:02:51.3]} 8. Ne5 {[%clk 0:02:46.2]}
8... Nfd7 {[%clk 0:02:42.3]} 9. f4 {[%clk 0:02:43.1]} 9... f6 {[%clk 0:02:41.5]}
10. Nef3 {[%clk 0:02:34.5]} 10... e5 {[%clk 0:02:34.3]} 11. dxe5 {[%clk
0:02:27.2]} 11... fxe5 {[%clk 0:02:33.7]} 12. Nb3 {[%clk 0:02:27.8]} 12... exf4
{[%clk 0:02:26.8]} 13. Qxd5+ {[%clk 0:02:25.8]} 13... Kh8 {[%clk 0:02:24.3]} 14.
exf4 {[%clk 0:02:18.9]} 14... Bxf4 {[%clk 0:02:19.2]} 15. Bxf4 {[%clk
0:02:08.6]} 15... Qxf4 {[%clk 0:02:16.9]} 16. Be2 {[%clk 0:02:08]} 16... Nf6
{[%clk 0:02:12.5]} 17. Qxc5 {[%clk 0:01:55.8]} 17... Ne4 {[%clk 0:02:11.5]} 18.
Qe5 {[%clk 0:01:47.6]} 18... Qg4 {[%clk 0:01:38.7]} 19. O-O-O {[%clk 0:01:20.3]}
19... Nc6 {[%clk 0:01:35.5]} 20. Qc7 {[%clk 0:00:50.7]} 20... Nf2 {[%clk
0:01:17.5]} 21. Qd6 {[%clk 0:00:28.3]} 21... Bf5 {[%clk 0:01:07.3]} 22. Nfd4
{[%clk 0:00:16.5]} 22... Qg5+ {[%clk 0:01:05.5]} 23. Nd2 {[%clk 0:00:12.2]}
23... Nxd4 {[%clk 0:01:01.3]} 24. Qxd4 {[%clk 0:00:10.6]} 24... Nxh1 {[%clk
0:01:00.3]} 25. h4 {[%clk 0:00:05.6]} 25... Qh6 {[%clk 0:00:49.3]} 26. g4 {[%clk
0:00:05.1]} 26... Ng3 {[%clk 0:00:47.6]} 27. gxf5 {[%clk 0:00:04]} 27... Nxe2+
{[%clk 0:00:47.4]} 0-1

[Event "*** Titled Tuesday Blitz"]
[Site "Chess.com"]
[Date "2020.04.14"]
[Round "4"]
[White "crazy_but_lazy"]
[Black "Dare-Dare"]
[Result "1-0"]
[WhiteElo "2408"]
[BlackElo "2182"]
[TimeControl "180+1"]
[EndTime "10:38:50 PDT"]
[Termination "crazy_but_lazy won by resignation"]

1. d4 {[%clk 0:03:00.9]} 1... d6 {[%clk 0:02:59.1]} 2. Nf3 {[%clk 0:02:57.6]}
2... f5 {[%clk 0:02:59.2]} 3. g3 {[%clk 0:02:53.3]} 3... Nf6 {[%clk 0:02:59.5]}
4. Bg2 {[%clk 0:02:53.8]} 4... g6 {[%clk 0:02:59.5]} 5. O-O {[%clk 0:02:54.3]}
5... Bg7 {[%clk 0:03:00.1]} 6. b3 {[%clk 0:02:55]} 6... O-O {[%clk 0:03:00.8]}
7. Bb2 {[%clk 0:02:55.6]} 7... c6 {[%clk 0:03:01.5]} 8. Nbd2 {[%clk 0:02:54.7]}
8... Qc7 {[%clk 0:03:02.1]} 9. c4 {[%clk 0:02:43.1]} 9... Re8 {[%clk 0:03:02.1]}
10. b4 {[%clk 0:02:33.2]} 10... e5 {[%clk 0:02:59.6]} 11. Qb3 {[%clk 0:02:32.3]}
11... e4 {[%clk 0:02:58]} 12. Ng5 {[%clk 0:02:31.2]} 12... h6 {[%clk 0:02:55.4]}
13. Nh3 {[%clk 0:02:31.5]} 13... g5 {[%clk 0:02:51.6]} 14. e3 {[%clk 0:02:24.4]}
14... Be6 {[%clk 0:02:45.4]} 15. Kh1 {[%clk 0:02:23.8]} 15... Nbd7 {[%clk
0:02:42.6]} 16. Ng1 {[%clk 0:02:18.6]} 16... d5 {[%clk 0:02:32.5]} 17. c5 {[%clk
0:02:17.1]} 17... a6 {[%clk 0:02:31.1]} 18. a4 {[%clk 0:02:17.1]} 18... f4
{[%clk 0:02:30.2]} 19. Rfe1 {[%clk 0:01:49.8]} 19... Ng4 {[%clk 0:02:19.7]} 20.
Nh3 {[%clk 0:01:41]} 20... fxg3 {[%clk 0:01:27.8]} 21. fxg3 {[%clk 0:01:35.4]}
21... Kh8 {[%clk 0:01:27.4]} 22. b5 {[%clk 0:01:33]} 22... axb5 {[%clk
0:01:26.9]} 23. axb5 {[%clk 0:01:33.9]} 23... Rxa1 {[%clk 0:01:25.2]} 24. Rxa1
{[%clk 0:01:34.8]} 24... cxb5 {[%clk 0:01:12.7]} 25. Re1 {[%clk 0:01:17.6]}
25... Rf8 {[%clk 0:00:55.4]} 26. Nxe4 {[%clk 0:01:12.3]} 26... Bg8 {[%clk
0:00:16.7]} 27. Nc3 {[%clk 0:01:08.2]} 27... Ndf6 {[%clk 0:00:15.1]} 28. Nxb5
{[%clk 0:01:06.2]} 28... Qf7 {[%clk 0:00:12.7]} 29. Nd6 {[%clk 0:01:04.3]} 29...
Qh5 {[%clk 0:00:12.6]} 30. Qxb7 {[%clk 0:00:54.3]} 30... Nxh2 {[%clk 0:00:07.7]}
31. Kxh2 {[%clk 0:00:50.9]} 31... Qh4 {[%clk 0:00:08.1]} 1-0